Cogmind - Beta 15 @@@ ROGUE MODE // 2025.08.16 @ 14:08:33 Player: StaticNoob Result: Destroyed by Enhanced Grunt with Neutron Cannon Performance ------------- Evolutions (3) 1500 Regions Visited (12) 2400 Robots Destroyed (166) 830 Value Destroyed (5912) 5912 Prototype IDs (239) 4780 Alien Tech Used (0) 0 Bonus (4571) 4571 TOTAL SCORE: 19993 Bonus ------- High Alert Combat Kills 399 Follower Combat Kills 72 Entered Garrisons 200 Aligned with FarCom 300 Met Data Miner 300 Used Data Conduit 3000 Acquired ECA 300 Cogmind --------- Core Integrity 0/700 Matter 177/300 Energy 99/100 System Corruption 9% Temperature Cool (0) Movement Core (50) Location -7/Data Miner Parts ------- > --- POWER (1) -------- (None) > --- PROPULSION (4) --- (None) > --- UTILITY (5) ------ Advanced Targeting Computer Core Analyzer > --- WEAPON (3) ------- (None) > --- INVENTORY (5) ---- Encrypted Comm Array Advanced Targeting Computer Matter Filter Latent Energy Streamer Datajack Peak State ------------ > --- POWER ------------ Light Deuterium Engine > --- PROPULSION ------- Light Treads Light Treads Light Treads Improved Treads > --- UTILITY ---------- Improved Heat Sink High-capacity Storage Unit Improved Signal Interpreter Advanced Targeting Computer Light Armor Plating > --- WEAPON ----------- Latent Energy Streamer Minigun Minigun > --- INVENTORY -------- Light Deuterium Engine Nuclear Core Reinforced Deuterium Engine Light Fission Core Light Treads Light Treads Light Treads Light Treads Light Treads Large Matter Pod Matter Filter Tractor Beam Minigun Minigun Minigun Gauss Rifle Rocket Launcher Datajack Plasma Cutter [Rating: 39] Favorites ----------- Power Reinforced Deuterium Engine Engine Reinforced Deuterium Engine Propulsion Light Treads Treads Light Treads Wheel Compact Wheel Utility High-capacity Storage Unit Device Seismic Detector Storage High-capacity Storage Unit Processor Advanced Targeting Computer Protection Improved Light Armor Plating Weapon Minigun Energy Cannon Latent Energy Streamer Ballistic Gun Minigun Ballistic Cannon Improved Light Cannon Launcher Rocket Launcher Build | -11 -10 -10 -9 -9 -9 -8 -8 -8 -7 -7 -7 -7 ------- Run | Yrd Mat Min Mat Min Exi Min Mat Gar Fac Low Low Dat Slots Evolved 6 | . . . 2 . . . 2 . 2 . . . Power . | . . . . . . . . . . . . . Propulsion 2 | . . . 1 . . . . . 1 . . . Utility 3 | . . . . . . . 2 . 1 . . . Weapon 1 | . . . 1 . . . . . . . . . Parts Attached 62 | 7 6 . 11 2 . 2 10 5 8 5 5 1 Power 8 | 1 1 . 1 . . . 3 . 1 . 1 . Engine 8 | 1 1 . 1 . . . 3 . 1 . 1 . Core . | . . . . . . . . . . . . . Reactor . | . . . . . . . . . . . . . Propulsion 14 | 2 1 . 5 . . . 1 2 3 . . . Treads 13 | 2 1 . 5 . . . 1 2 2 . . . Leg . | . . . . . . . . . . . . . Wheel 1 | . . . . . . . . . 1 . . . Hover . | . . . . . . . . . . . . . Flight . | . . . . . . . . . . . . . Utility 19 | 2 1 . 3 . . 1 3 2 2 4 1 . Device 8 | 1 . . 1 . . . 3 . . 2 1 . Storage 4 | 1 1 . 2 . . . . . . . . . Processor 4 | . . . . . . 1 . 1 1 1 . . Hackware . | . . . . . . . . . . . . . Protection 3 | . . . . . . . . 1 1 1 . . Artifact . | . . . . . . . . . . . . . Weapon 21 | 2 3 . 2 2 . 1 3 1 2 1 3 1 Energy Gun . | . . . . . . . . . . . . . Energy Cannon 1 | . . . . . . 1 . . . . . . Ballistic Gun 14 | 2 . . 2 . . . 3 1 2 1 3 . Ballistic Cannon 3 | . 2 . . . . . . . . . . 1 Launcher 3 | . 1 . . 2 . . . . . . . . Special Weapon . | . . . . . . . . . . . . . Impact Weapon . | . . . . . . . . . . . . . Slashing Weapon . | . . . . . . . . . . . . . Piercing Weapon . | . . . . . . . . . . . . . Special Melee Weapon . | . . . . . . . . . . . . . Unidentified Prototypes . | . . . . . . . . . . . . . Parts Lost 27 | . 1 . 1 . . . 3 . 7 . 10 5 Power 4 | . 1 . 1 . . . . . . . 1 1 Propulsion 8 | . . . . . . . . . 3 . 5 . Utility 6 | . . . . . . . 1 . 2 . 1 2 Weapon 9 | . . . . . . . 2 . 2 . 3 2 Highest Loss Streak 5 | . 1 . 1 . . . 2 . 4 . 4 5 To Critical Strikes . | . . . . . . . . . . . . . Average Backups 15 | 2 6 10 14 17 19 19 19 20 18 17 15 12 Power 2 | . . . . . 2 3 3 4 4 4 1 . Propulsion 3 | 1 2 3 4 5 5 5 5 6 4 1 . . Utility 3 | . . 2 3 5 5 4 2 2 2 4 6 6 Weapon 4 | . 2 4 4 5 5 5 5 6 5 4 3 2 Tool/Special . | . . . . . . . . . . . . . Unused Backups 20 | . 2 . 6 . . . . . 1 . 3 8 Power 3 | . . . . . . . . . . . 3 . Propulsion 2 | . 1 . 1 . . . . . . . . . Utility 7 | . 1 . 1 . . . . . . . . 5 Weapon 4 | . . . 3 . . . . . 1 . . . Tool/Special 4 | . . . 1 . . . . . . . . 3 Average Slot Usage (%) 90 | . 100 100 99 100 100 100 99 99 99 99 74 46 Engine 9 | . 14 14 10 11 11 11 9 9 7 7 6 7 Treads 22 | . 28 28 33 33 33 33 27 27 28 29 6 . Device 10 | . 14 14 11 11 11 2 17 10 7 5 12 6 Storage 9 | . 14 14 11 11 11 11 9 9 7 7 7 6 Processor 8 | . . . . . . 8 9 9 14 20 15 15 Protection 2 | . . . . . . . . 7 6 3 1 6 Ballistic Gun 16 | . 18 . 10 11 11 11 24 26 22 23 22 . Ballistic Cannon 7 | . 9 27 21 21 22 20 . . . . . . Peak Build Rating 39 | 7 10 10 17 17 19 28 34 35 39 36 35 30 Average Rating 23 | 4 7 9 15 16 18 21 28 29 33 35 33 20 On Entrance 19 | . 7 9 10 17 17 19 21 29 29 29 35 34 Naked Turns . | . . . . . . . . . . . . . Heaviest Build 77 | 13 34 34 59 59 59 64 68 67 65 60 77 69 Greatest Support 83 | 40 40 40 63 63 63 63 63 63 83 80 80 3 Greatest Overweight (x) 25 | . . . . . . 1 1 1 3 . 25 22 Average Overweight (x) . | . . . . . . . . . . . 6 18 Largest Inventory Capacity 20 | 8 15 15 20 20 20 20 20 20 20 20 20 20 Average Capacity 18 | 7 10 15 15 20 20 20 20 20 20 20 20 19 Most Carried 20 | 4 10 12 17 17 20 20 20 20 20 20 20 13 Average Carried 15 | 2 6 10 14 17 19 19 19 20 18 17 15 12 Final Capacity 20 | 8 15 15 20 20 20 20 20 20 20 20 20 5 Final Carried 20 | 4 9 12 17 17 20 19 20 20 17 20 13 5 Class Distribution -------------------- 26% | Scavenger-Gunner 25% | Scavenger-Skirmisher 24% | Mutant 14% | Gunner 9% | Skirmisher Dominant Class ---------------- Mutant | -10/Materials Mutant | -10/Mines Scavenger-Gunner | -9/Materials Scavenger-Gunner | -9/Mines Scavenger-Gunner | -9/Exiles Skirmisher | -8/Mines Scavenger-Skirmisher | -8/Materials Scavenger-Skirmisher | -8/Garrison Scavenger-Skirmisher | -7/Factory Scavenger-Gunner | -7/Lower Caves Gunner | -7/Lower Caves Mutant | -7/Data Miner Resources | -11 -10 -10 -9 -9 -9 -8 -8 -8 -7 -7 -7 -7 ----------- Run | Yrd Mat Min Mat Min Exi Min Mat Gar Fac Low Low Dat Matter Collected 4979 | 207 312 270 997 115 . 53 864 663 442 481 575 . Remotely 570 | . . . 127 . . . . . 179 264 . . Salvage Created 5625 | 93 356 94 1280 44 . 69 1306 697 612 49 827 198 Parts 311 | 4 23 7 80 7 . 8 61 49 39 2 27 4 Haulers Intercepted 5 | . 1 . 2 . . . 1 . 1 . . . Recyclers Shooed 3 | 1 1 . . . . . . . 1 . . . Parts Field Recycled . | . . . . . . . . . . . . . Retrieved Matter . | . . . . . . . . . . . . . Parts Self-Destructed 33 | . . . . . . . . . . 2 31 . Prevented . | . . . . . . . . . . . . . Kills | -11 -10 -10 -9 -9 -9 -8 -8 -8 -7 -7 -7 -7 ------- Run | Yrd Mat Min Mat Min Exi Min Mat Gar Fac Low Low Dat Combat Hostiles Destroyed 129 | . 8 5 31 6 . 4 21 22 10 1 19 2 Guns 62 | . 3 . 3 1 . . 18 14 6 1 16 . Cannons 28 | . . 4 22 1 . 1 . . . . . . AOE 36 | . 5 1 6 4 . 3 2 8 4 . 3 . Classes Destroyed 15 | 2 5 2 3 1 . . 1 1 . . . . Worker 7 | . . 1 . . . . 4 . 2 . . . Builder 8 | . . . 3 . . . . . 5 . . . Tunneler 3 | 1 . 1 . . . 1 . . . . . . Hauler 5 | . 1 . 2 . . . 1 . 1 . . . Recycler 7 | 1 2 . 3 . . . 1 . . . . . Operator 1 | . 1 . . . . . . . . . . . Watcher 9 | . 2 . 5 . . . 2 . . . . . Swarmer 39 | . 6 3 7 3 . 4 . 10 . . 6 . Grunt 55 | . 2 . 17 . . . 13 5 7 . 11 . Brawler 3 | . . . 1 . . . 1 . 1 . . . Duelist 3 | . . . 1 . . . 1 . . . 1 . Sentry 19 | . . 2 5 . . . 5 5 1 . 1 . Hunter 3 | . . . . . . . 1 1 . 1 . . Programmer 2 | . . . . . . . . 1 1 . . . Enhanced Grunt 2 | . . . . . . . . . . . . 2 Assembled 3 | . . . . 3 . . . . . . . . Best Kill Streak 11 | 1 8 4 5 3 . 4 5 4 11 1 6 2 Combat Bots Only 7 | . 3 3 4 3 . 4 4 4 7 1 6 2 Max Kills in Single Turn 3 | 1 3 1 2 2 . 3 2 3 2 1 1 1 Gunslinging . | . . . . . . . . . . . . . Exploded 3 | . 3 1 2 2 . 3 1 3 2 . 1 . Melee . | . . . . . . . . . . . . . Uniques/NPCs Destroyed . | . . . . . . . . . . . . . Combat | -11 -10 -10 -9 -9 -9 -8 -8 -8 -7 -7 -7 -7 -------- Run | Yrd Mat Min Mat Min Exi Min Mat Gar Fac Low Low Dat Hostile Shots Fired 436 | . 48 25 74 13 . 1 53 50 51 10 84 27 Missed 125 | . 8 7 22 4 . . 20 14 19 2 22 7 Hits 311 | . 40 18 52 9 . 1 33 36 32 8 62 20 Melee 6 | . . . 2 1 . . 1 . . . 2 . Projectile 305 | . 40 18 50 8 . 1 32 36 32 8 60 20 Critical Strikes 11 | . . 1 1 1 . . 3 2 1 . 2 . Part Disruptions 1 | . 1 . . . . . . . . . . . Damage Taken 4871 | . 486 237 606 104 . 7 390 566 624 125 855 871 Core 919 | . 53 20 42 . . . 54 41 54 . 137 518 Absorbed by Shields 319 | . . . . . . . 121 . . . 198 . Core Remaining (%) 85 | 100 . 70 . . . 89 . 82 . . . . Volleys Fired 342 | 6 51 9 76 9 . 3 61 51 25 6 37 8 Largest 3 | 2 2 2 3 3 . 3 3 3 3 3 3 2 Hottest 94 | 40 66 66 91 91 . 91 91 75 78 78 94 66 Shots Fired 833 | 12 94 17 214 17 . 8 172 112 57 18 100 12 Gun 581 | 12 70 . 69 4 . 2 163 99 48 18 96 . Cannon 211 | . 21 15 138 8 . 6 9 6 . . . 8 Launcher 41 | . 3 2 7 5 . . . 7 9 . 4 4 Special . | . . . . . . . . . . . . . Kinetic 778 | 12 91 15 207 12 . 7 167 99 48 18 96 6 Thermal . | . . . . . . . . . . . . . Explosive 41 | . 3 2 7 5 . . . 7 9 . 4 4 Electromagnetic 14 | . . . . . . 1 5 6 . . . 2 Robot Hit Streak 31 | 5 9 12 24 4 . 6 22 31 9 6 19 3 Robot Miss Streak 5 | 1 5 1 5 3 . . 3 5 4 3 4 3 Penetration Max 1 | . . . . . . . . . 1 . . . Secondary Targets 9 | . . . . . . . . 1 2 . 6 . Max Gunslinging Chain 1 | . . . . . . . . 1 1 . 1 . Shots Hit Robots 491 | 9 47 14 118 8 . 2 118 59 29 11 70 6 Core Hits 286 | 4 24 6 56 8 . 5 49 32 33 3 58 8 Critical Kills 5 | 1 . . . . . . 1 1 1 . 1 . Critical Parts Destroyed 3 | . . . . . . . 2 1 . . . . Critical Strikes 9 | 1 . . . . . . 3 2 1 . 1 1 Destroy 8 | 1 . . . . . . 3 2 1 . 1 . Blast 1 | . . . . . . . . . . . . 1 Melee Attacks . | . . . . . . . . . . . . . Impact . | . . . . . . . . . . . . . Slashing . | . . . . . . . . . . . . . Piercing . | . . . . . . . . . . . . . Sneak Attacks . | . . . . . . . . . . . . . Combat Hostiles . | . . . . . . . . . . . . . Follow-up Attacks . | . . . . . . . . . . . . . Damage Inflicted 13022 | 81 725 366 2840 337 . 385 3059 1469 1304 144 1488 824 Guns 6244 | 81 381 . 764 47 . 16 2012 995 566 144 1238 . Cannons 2076 | . 65 255 1571 38 . 20 63 . . . . 64 Explosions 4626 | . 260 111 483 244 . 342 980 474 722 . 250 760 Melee . | . . . . . . . . . . . . . Ramming 76 | . 19 . 22 8 . 7 4 . 16 . . . Kinetic 8317 | 81 446 255 2335 85 . 36 2075 995 566 144 1238 61 Thermal 215 | . . . . . . 102 113 . . . . . Explosive 2757 | . 260 111 483 244 . . . 352 722 . 250 335 Electromagnetic 1657 | . . . . . . 240 867 122 . . . 428 Impact . | . . . . . . . . . . . . . Slashing . | . . . . . . . . . . . . . Piercing . | . . . . . . . . . . . . . Highest Corruption 26 | . 1 1 . . . 3 12 26 2 2 2 9 Average Corruption 5 | . 1 1 . . . 3 6 19 1 2 2 2 Corruption Purged . | . . . . . . . . . . . . . Corruption Blocked . | . . . . . . . . . . . . . Effects 170 | . 6 3 . . . 4 21 64 8 12 33 19 Message Errors 42 | . 1 1 . . . . 6 15 2 2 8 7 Matter Fused 41 | . 1 . . . . 2 5 16 1 2 8 6 Heat Flow Errors 19 | . 1 . . . . 1 2 6 1 2 5 1 Energy Discharges 21 | . 2 1 . . . . . 7 1 4 4 2 Parts Rejected 2 | . . . . . . . . . 1 . 1 . Parts Fused 1 | . . . . . . . . 1 . . . . Data Loss (minor) 16 | . . . . . . . 2 6 1 1 3 3 Data Loss (major) 8 | . . . . . . . 1 4 1 1 1 . Misfires 12 | . . 1 . . . 1 2 6 . . 2 . Alerts 1 | . . . . . . . 1 . . . . . Weapon Failures 7 | . 1 . . . . . 2 3 . . 1 . Overload Shots . | . . . . . . . . . . . . . Overflow Damage 280 | . 19 28 53 17 . 40 73 40 . . . 10 Projectiles 43 | . 9 10 23 1 . . . . . . . . Explosions 237 | . 10 18 30 16 . 40 73 40 . . . 10 Melee . | . . . . . . . . . . . . . Knockbacks 18 | . . . 16 1 . . 1 . . . . . Impact . | . . . . . . . . . . . . . Kinetic 17 | . . . 15 1 . . 1 . . . . . Secondary 1 | . . . 1 . . . . . . . . . Self-Inflicted Damage 138 | . . . . 9 . . 1 77 51 . . . Shots 6 | . . . . 1 . . 1 2 2 . . . Rammed 16 | . 4 2 3 1 . 2 1 . 2 . . 1 Targets Rammed 18 | . 5 2 3 1 . 2 1 . 3 . . 1 Kicked . | . . . . . . . . . . . . . Crushed 2 | . 1 . . . . . . . 1 . . . Highest Temperature 273 | . 177 102 121 50 . 132 219 236 218 195 273 239 Average Temperature 44 | . 28 38 29 19 . 37 18 70 47 60 81 99 Received Heat Transfer 1390 | . 174 90 219 20 . . 202 153 255 . 277 . Siege Activations . | . . . . . . . . . . . . . Martial Activations . | . . . . . . . . . . . . . Shielding Activations . | . . . . . . . . . . . . . Robots Disrupted . | . . . . . . . . . . . . . Combat Hostiles . | . . . . . . . . . . . . . Robots Corrupted 3 | . . . . . . . 1 . . . . 2 Combat Hostiles 3 | . . . . . . . 1 . . . . 2 Parts Fried 13 | . . . . . . 1 4 . . . . 8 Impact Corruptions . | . . . . . . . . . . . . . Robots Melted . | . . . . . . . . . . . . . Combat Hostiles . | . . . . . . . . . . . . . Parts Melted . | . . . . . . . . . . . . . Heat Transferred 200 | . . . . . . 150 50 . . . . . Parts Sabotaged . | . . . . . . . . . . . . . Parts Stolen . | . . . . . . . . . . . . . Parts Stripped . | . . . . . . . . . . . . . Power Chain Reactions . | . . . . . . . . . . . . . Latent Energy Used 2024 | . . . . . . 191 734 699 . . . 400 LE Corruption 35 | . . . . . . 3 12 14 . . . 6 Alert | -11 -10 -10 -9 -9 -9 -8 -8 -8 -7 -7 -7 -7 ------- Run | Yrd Mat Min Mat Min Exi Min Mat Gar Fac Low Low Dat Maximum Alert Level 4 | . . . 1 . . . 2 4 2 . . . Low Security (%) 54 | 100 100 100 51 100 . 100 56 . . . . . Level 1 17 | . . . 48 . . . 32 7 11 . . . Level 2 18 | . . . . . . . 10 38 88 . . . Level 3 6 | . . . . . . . . 39 . . . . Level 4 2 | . . . . . . . . 14 . . . . Level 5 . | . . . . . . . . . . . . . High Security . | . . . . . . . . . . . . . Max Security . | . . . . . . . . . . . . . Peak Influence 1218 | 5 123 95 345 95 . 139 429 1218 641 . . . Initial 639 | . . 3 . 53 . . 26 260 639 . . . Average 253 | 1 33 20 165 21 . 30 152 789 482 . . . Influence Increases 4228 | 10 280 140 956 131 . 145 771 958 319 30 488 . Destroy 0b10 Robot/C 2520 | . 160 100 620 60 . 80 420 440 200 20 420 . Destroy 0b10 Robot/NC 200 | 10 30 10 65 . . 5 40 . 40 . . . Destroy Leader 428 | . 36 10 154 10 . 10 106 20 32 10 40 . Allied During Kill 13 | . . . . . . . . . . . 13 . Successful Hack 123 | . 14 . 60 . . . 25 . 24 . . . Disable Machine 180 | . 15 . . 15 . 30 75 45 . . . . Anti-Garrison Action 350 | . . . . . . . . 350 . . . . Destroy Structure 279 | . 25 5 42 31 . 20 60 73 23 . . . Lose Combat Pursuer 135 | . . 15 15 15 . . 45 30 . . 15 . Influence Decreases 4228 | 10 270 150 819 268 . 78 437 141 1089 478 430 58 Entered New Map 1077 | . . 7 . 84 . . 41 141 579 167 . 58 Time Decay 2667 | 10 270 143 509 184 . 78 372 . 440 311 350 . Lost Part 184 | . . . 10 . . . 24 . 70 . 80 . Purge Threat 300 | . . . 300 . . . . . . . . . Squads Dispatched 14 | . . . 4 . . . 4 . 5 . 1 . Investigation . | . . . . . . . . . . . . . Extermination 2 | . . . . . . . . . 2 . . . Reinforcement 10 | . . . 4 . . . 4 . 2 . . . Assault 2 | . . . . . . . . . 1 . 1 . Garrison . | . . . . . . . . . . . . . Intercept . | . . . . . . . . . . . . . Searches Triggered . | . . . . . . . . . . . . . Construction Impeded 2 | . . . 1 . . . . . 1 . . . Haulers Reinforced . | . . . . . . . . . . . . . Active Scanning Responses . | . . . . . . . . . . . . . Cargo Convoy Interrupts . | . . . . . . . . . . . . . Stealth | -11 -10 -10 -9 -9 -9 -8 -8 -8 -7 -7 -7 -7 --------- Run | Yrd Mat Min Mat Min Exi Min Mat Gar Fac Low Low Dat Distress Signals 8 | . 2 . 3 1 . . 1 . 1 . . . Communications Jammed . | . . . . . . . . . . . . . Distress Signals . | . . . . . . . . . . . . . Times Spotted 178 | . 16 5 41 10 . 1 37 16 21 1 26 4 Peak Tracking Total 18 | . 4 2 4 18 . 1 4 5 5 1 9 4 Tactical Retreats 9 | . . 1 1 2 . . 3 1 . . 1 . Traps | -11 -10 -10 -9 -9 -9 -8 -8 -8 -7 -7 -7 -7 ------- Run | Yrd Mat Min Mat Min Exi Min Mat Gar Fac Low Low Dat Traps Triggered 2 | . 1 . . . . . . . 1 . . . Indirectly . | . . . . . . . . . . . . . Trap Hack Attempts . | . . . . . . . . . . . . . Triggered . | . . . . . . . . . . . . . Disarmed . | . . . . . . . . . . . . . Reprogrammed . | . . . . . . . . . . . . . Reused . | . . . . . . . . . . . . . Traps Extracted . | . . . . . . . . . . . . . Installed . | . . . . . . . . . . . . . Triggered . | . . . . . . . . . . . . . Machines | -11 -10 -10 -9 -9 -9 -8 -8 -8 -7 -7 -7 -7 ---------- Run | Yrd Mat Min Mat Min Exi Min Mat Gar Fac Low Low Dat Machines Disabled 21 | . 1 . . 1 . 2 5 12 . . . . Max in Single Turn 3 | . 1 . . 1 . 2 2 3 . . . . Garrison Relay 5 | . . . . . . . . 5 . . . . Machines Repaired . | . . . . . . . . . . . . . Machines Dismantled . | . . . . . . . . . . . . . Machines Sabotaged . | . . . . . . . . . . . . . Overloaded Fab Kills . | . . . . . . . . . . . . . Hacking | -11 -10 -10 -9 -9 -9 -8 -8 -8 -7 -7 -7 -7 --------- Run | Yrd Mat Min Mat Min Exi Min Mat Gar Fac Low Low Dat Machines Accessed 39 | . 8 . 11 . 1 . 5 2 6 2 . 4 Terminals 27 | . 8 . 10 . . . 4 2 3 . . . Fabricators 1 | . . . . . . . . . 1 . . . Repair Stations . | . . . . . . . . . . . . . Recycling Units 1 | . . . . . . . . . 1 . . . Scanalyzers 2 | . . . 1 . . . . . 1 . . . Garrison Access 1 | . . . . . . . 1 . . . . . Total Hacks 132 | . 20 . 42 . 1 . 17 4 12 4 . 32 Successful 81 | . 9 . 23 . 1 . 8 . 4 4 . 32 Failed 48 | . 10 . 18 . . . 8 4 8 . . . Catastrophic 10 | . . . 5 . . . 1 2 2 . . . Database Lockouts 3 | . 1 . 1 . . . 1 . . . . . Manual 70 | . 18 . 33 . 1 . 12 . 6 . . . Terminals 82 | . 20 . 36 . . . 16 4 6 . . . Fabricators 1 | . . . . . . . . . 1 . . . Repair Stations . | . . . . . . . . . . . . . Recycling Units 3 | . . . . . . . . . 3 . . . Scanalyzers 8 | . . . 6 . . . . . 2 . . . Garrison Access 1 | . . . . . . . 1 . . . . . Terminal Hacks 56 | . 2 . 10 . 1 . 6 . 1 4 . 32 Record 14 | . . . . . . . . . . 3 . 11 Part Schematic 12 | . . . . . . . . . . . . 12 Robot Schematic 6 | . . . . . . . . . . . . 6 Robot Analysis 1 | . 1 . . . . . . . . . . . Prototype ID Bank 11 | . 1 . 4 . . . 3 . . . . 3 Open Door 1 | . . . . . . . . . . 1 . . Branch Access Points 3 | . . . 1 . . . 1 . 1 . . . Unreport Threat 2 | . . . 2 . . . . . . . . . Locate Traps 1 | . . . 1 . . . . . . . . . Zone Layout 4 | . . . 2 . . . 2 . . . . . Proto ID Catalog 1 | . . . . . 1 . . . . . . . Fabricator Hacks . | . . . . . . . . . . . . . Repair Station Hacks . | . . . . . . . . . . . . . Recycling Unit Hacks 1 | . . . . . . . . . 1 . . . Retrieve Components 1 | . . . . . . . . . 1 . . . Scanalyzer 7 | . . . 6 . . . . . 1 . . . Insert Component 5 | . . . 4 . . . . . 1 . . . Analyze 2 | . . . 2 . . . . . . . . . Garrison Access Hacks 1 | . . . . . . . 1 . . . . . Unlock Access 1 | . . . . . . . 1 . . . . . Unauthorized Hacks 16 | . 7 . 7 . . . 1 . 1 . . . Terminals 16 | . 7 . 7 . . . 1 . 1 . . . Botnet 4 | . 1 . 1 . . . 1 . 1 . . . Operators 1 | . 1 . . . . . . . . . . . Skim 11 | . 5 . 6 . . . . . . . . . Fabricators . | . . . . . . . . . . . . . Repair Stations . | . . . . . . . . . . . . . Recycling Units . | . . . . . . . . . . . . . Scanalyzers . | . . . . . . . . . . . . . Garrison Access . | . . . . . . . . . . . . . Data Cores Recovered 1 | . 1 . . . . . . . . . . . Used . | . . . . . . . . . . . . . Hacking Detections 29 | . 8 . 10 . . . 4 2 5 . . . Full Trace Events . | . . . . . . . . . . . . . Feedback Events . | . . . . . . . . . . . . . Feedback Blocked . | . . . . . . . . . . . . . Robot Schematics Acquired 6 | . . . . . . . . . . . . 6 Robots Built . | . . . . . . . . . . . . . Authchips . | . . . . . . . . . . . . . Time . | . . . . . . . . . . . . . Total Robot Build Rating . | . . . . . . . . . . . . . Part Schematics Acquired 14 | . . . 2 . . . . . . . . 12 Parts Built . | . . . . . . . . . . . . . Authchips . | . . . . . . . . . . . . . Time . | . . . . . . . . . . . . . Total Part Build Rating . | . . . . . . . . . . . . . Parts Repaired . | . . . . . . . . . . . . . Time . | . . . . . . . . . . . . . Parts Recycled . | . . . . . . . . . . . . . Recycled Matter . | . . . . . . . . . . . . . Retrieved Matter . | . . . . . . . . . . . . . Retrieved Components . | . . . . . . . . . . . . . Parts Scanalyzed 2 | . . . 2 . . . . . . . . . Part Schematics Acquired 2 | . . . 2 . . . . . . . . . Parts Damaged 1 | . . . 1 . . . . . . . . . Bothacking | -11 -10 -10 -9 -9 -9 -8 -8 -8 -7 -7 -7 -7 ------------ Run | Yrd Mat Min Mat Min Exi Min Mat Gar Fac Low Low Dat Used RIF Installer . | . . . . . . . . . . . . . Robots Hacked . | . . . . . . . . . . . . . Non-combat . | . . . . . . . . . . . . . Combat . | . . . . . . . . . . . . . Robot Hacks Applied . | . . . . . . . . . . . . . Relay Couplers Released 23 | . . . . . . . . 23 . . . . Machine Destruction 20 | . . . . . . . . 20 . . . . Programmers 3 | . . . . . . . . 3 . . . . Fabnet Peak Effective % . | . . . . . . . . . . . . . Robots Rewired 2 | . . . . . . . . . . . 2 . Allies Hacked . | . . . . . . . . . . . . . Hacks Repelled . | . . . . . . . . . . . . . Allies | -11 -10 -10 -9 -9 -9 -8 -8 -8 -7 -7 -7 -7 -------- Run | Yrd Mat Min Mat Min Exi Min Mat Gar Fac Low Low Dat Total Allies 2 | . . . . . . . . . . . 2 . Largest Group 2 | . . . . . . . . . . . 2 2 Highest-Rated Group 36 | . . . . . . . . . . . 36 33 Highest-Rated Ally 20 | . . . . . . . . . . . 20 17 Initial Warlord ECA Mod 24 | . . . . . . . . . 6 6 6 6 Total Orders . | . . . . . . . . . . . . . Ally Attacks 11 | . . . . . . . . . . . 11 . Total Damage 200 | . . . . . . . . . . . 200 . Kills 2 | . . . . . . . . . . . 2 . Allies Corrupted . | . . . . . . . . . . . . . Allies Melted . | . . . . . . . . . . . . . Intel | -11 -10 -10 -9 -9 -9 -8 -8 -8 -7 -7 -7 -7 ------- Run | Yrd Mat Min Mat Min Exi Min Mat Gar Fac Low Low Dat Active Infowar (turns) 8129 | 20 886 775 1673 676 338 120 . . . 247 1915 1479 Seismic 8129 | 20 886 775 1673 676 338 120 . . . 247 1915 1479 Robot Analysis Total 152 | . 1 . . . . . . . . . . 151 Derelict Logs Recovered 7 | . . 2 . 2 . . . . . . 3 . Drone Launches . | . . . . . . . . . . . . . Drone Recoveries . | . . . . . . . . . . . . . Exploration | -11 -10 -10 -9 -9 -9 -8 -8 -8 -7 -7 -7 -7 ------------- Run | Yrd Mat Min Mat Min Exi Min Mat Gar Fac Low Low Dat Turns Passed 13362 | 96 886 775 1683 676 338 653 1474 1403 1090 877 1915 1496 Spaces Moved 5731 | 43 451 437 833 403 209 381 680 686 569 527 361 151 Core 246 | 2 . . . . . . . . . . 93 151 Treads 5460 | 41 451 437 833 403 209 381 680 686 544 527 268 . Legs . | . . . . . . . . . . . . . Wheels 25 | . . . . . . . . . 25 . . . Hover . | . . . . . . . . . . . . . Flight . | . . . . . . . . . . . . . Fastest Speed 50 | 50 160 160 160 160 160 160 160 160 145 160 160 50 Average Speed 204 | 154 160 160 160 160 160 167 172 160 160 160 493 963 Slowest Speed 1300 | 160 160 160 160 160 160 240 240 240 240 160 1300 1150 Overloaded Moves . | . . . . . . . . . . . . . Propulsion Burnouts . | . . . . . . . . . . . . . Robots Hopped . | . . . . . . . . . . . . . Potential Cave-ins 4 | . . . . . . . . . 4 . . . Cave-ins Triggered . | . . . . . . . . . . . . . Exploration Rate (%) 62 | 5 82 89 89 70 40 81 81 68 19 63 44 78 Regions Visited 12 Branch Regions 7 Pre-discovered Areas 28 | . . 1 3 . . . . . . 1 . 23 Known Exits Taken 5 | . . . 1 . . 1 1 . 1 . 1 . Unknown Exits Taken 6 | 1 1 1 . 1 1 . . . . 1 . . Scrap Searched 13 | . . 2 . 2 . 2 . . . 5 2 . Spaces Dug 32 | . 1 . . . . . . . 31 . . . Terrain Destroyed 454 | . 28 5 48 44 . 30 87 86 56 . 24 46 Melee . | . . . . . . . . . . . . . Projectile 19 | . 2 . 10 3 . 2 1 . . . . 1 AOE 435 | . 26 5 38 41 . 28 86 86 56 . 24 45 Terrain Rammed . | . . . . . . . . . . . . . Walls Destroyed . | . . . . . . . . . . . . . Machines Disabled . | . . . . . . . . . . . . . Actions | -11 -10 -10 -9 -9 -9 -8 -8 -8 -7 -7 -7 -7 --------- Run | Yrd Mat Min Mat Min Exi Min Mat Gar Fac Low Low Dat Total 6795 | 59 531 495 1028 419 213 390 877 914 702 552 439 176 Wait 477 | . 4 43 76 3 . 1 109 152 79 . 8 2 Move 5719 | 42 450 436 832 402 208 380 680 684 568 526 360 151 Hop . | . . . . . . . . . . . . . Pick Up 49 | 4 7 3 12 . 4 . 5 1 5 7 1 . Fast Attach 19 | 7 2 . 1 . . . 1 3 2 2 1 . Attach 29 | . 1 . 3 . . 1 5 . 7 3 6 3 Detach 2 | . . . . . . . . . 1 1 . . Swap 72 | . 6 2 13 4 . 2 12 17 9 3 3 1 Drop 48 | . 5 . 12 . 1 1 3 6 3 4 3 10 Fire 342 | 6 51 9 76 9 . 3 61 51 25 6 37 8 Melee . | . . . . . . . . . . . . . Ram 1 | . . . . . . . . . . . . 1 Kick . | . . . . . . . . . . . . . Crush 17 | . 5 2 3 1 . 2 1 . 3 . . . Escape Stasis . | . . . . . . . . . . . . . Rewire 20 | . . . . . . . . . . . 20 . Trap . | . . . . . . . . . . . . . Miscellaneous . | . . . . . . . . . . . . . Route ------- -11/Scrapyard -10/Materials (discovered 4 exits: *Mat x2 / [*Min] / [*Sub]) -10/Mines -9/Materials (discovered 5 exits: *Mat x3 / *Min x2) -9/Mines (discovered 3 exits: *Mat x2 / *Exi) -9/Exiles -8/Mines -8/Materials (discovered 4 exits: *Fac x3 / Gar) -8/Garrison (discovered 3 exits: *Fac x3) -7/Factory (discovered 3 exits: Sto / *Low x2) -7/Lower Caves -7/Lower Caves (discovered 2 exits: Fac / *Dat) -7/Data Miner (discovered 1 exit: [*Pro]) History --------- Turn | Location | Event 36 | -11/Scrapyard | Discovered new exit (range 15) 97 | -11/Scrapyard | Entered Materials 310 | -10/Materials | Build established: Mutant 377 | -10/Materials | Discovered new exit (range 8) 439 | -10/Materials | Discovered new exit (range 16) 634 | -10/Materials | Discovered new exit (range 8) 660 | -10/Materials | Learned 4 Subcaves zone layouts 697 | -10/Materials | Learned 2 Storage zone layouts 702 | -10/Materials | Learned 4 Recycling zone layouts 703 | -10/Materials | Loaded intel: 8 terminal locations 709 | -10/Materials | Discovered new exit (range 14) 864 | -10/Materials | Central database locked down 983 | -10/Materials | Entered Mines 991 | -10/Mines | Met a Derelict bent on vengeance 1312 | -10/Mines | Learned Materials trap positions 1371 | -10/Mines | Learned location of Zion (-6) 1421 | -10/Mines | Discovered new exit (range 15) 1758 | -10/Mines | Entered Materials 1758 | -9/Materials | Evolved 2 slots: Propulsion x1, Weapon x1 1759 | -9/Materials | Loaded intel: 26 trap records 1866 | -9/Materials | Discovered new exit (range 15) 2088 | -9/Materials | Discovered new exit (range 5) 2194 | -9/Materials | Build established: Scavenger-Gunner 2799 | -9/Materials | Central database locked down 2825 | -9/Materials | Discovered new exit (range 16) 3198 | -9/Materials | Discovered new exit (range 4) 3247 | -9/Materials | Identified exit to Mines 3316 | -9/Materials | Learned 4 Recycling zone layouts 3346 | -9/Materials | Learned location of 2 exits from Materials 3441 | -9/Materials | Entered Mines 3442 | -9/Mines | Identified exit to Materials 3496 | -9/Mines | Learned Materials stockpile data 3686 | -9/Mines | Assembled infested the area 3691 | -9/Mines | Assisted by a Guerilla fighting off Assembled 3951 | -9/Mines | Learned Materials emergency access door positions 4111 | -9/Mines | Deemed a non-threat by the Exiles lab entrance 4111 | -9/Mines | Discovered new exit (range 5) 4117 | -9/Mines | Entered Exiles 4165 | -9/Exiles | Met 8R-AWN 4188 | -9/Exiles | Met EX-HEX 4231 | -9/Exiles | Met EX-BIN 4250 | -9/Exiles | Aligned with FarCom system 4252 | -9/Exiles | Given EX-Vault access code 4288 | -9/Exiles | Opened EX-Vault 4303 | -9/Exiles | Found Latent Energy Streamer 4336 | -9/Exiles | Warned to stay clear of 0b10 Research branches 4437 | -9/Exiles | Discovered new exit (range 14) 4455 | -9/Exiles | Left Exiles lab with Latent Energy Streamer 4455 | -9/Exiles | Entered Mines 4872 | -8/Mines | Build established: Skirmisher 4991 | -8/Mines | Discovered exit to Materials (range 5) 5108 | -8/Mines | Entered Materials 5108 | -8/Materials | Evolved 2 slots: Utility x2 5109 | -8/Materials | Identified exit to Factory 5685 | -8/Materials | Discovered exit to Factory (range 4) 5711 | -8/Materials | Build established: Scavenger-Skirmisher 6337 | -8/Materials | Build established: Skirmisher 6367 | -8/Materials | System corruption reached 10% 6523 | -8/Materials | Central database locked down 6582 | -8/Materials | Identified exit to Garrison 6582 | -8/Materials | Entered Garrison 6614 | -8/Garrison | Triggered checkpoint 6632 | -8/Garrison | Garrison Relay disabled 6685 | -8/Garrison | Triggered checkpoint 6766 | -8/Garrison | Build established: Scavenger-Skirmisher 6850 | -8/Garrison | Triggered checkpoint 6874 | -8/Garrison | Garrison Relay disabled 6935 | -8/Garrison | Discovered exit to Factory (range 8) 7018 | -8/Garrison | Garrison Relay disabled 7124 | -8/Garrison | Triggered checkpoint 7192 | -8/Garrison | Discovered exit to Factory (range 9) 7292 | -8/Garrison | Triggered checkpoint 7364 | -8/Garrison | Garrison Relay disabled 7443 | -8/Garrison | Triggered checkpoint 7534 | -8/Garrison | Discovered exit to Factory (range 12) 7600 | -8/Garrison | Triggered checkpoint 7630 | -8/Garrison | Garrison Relay disabled 7797 | -8/Garrison | Attempted to access garrison exit controls, blocked by remote lockdown 7985 | -8/Garrison | Entered Factory 7985 | -7/Factory | Evolved 2 slots: Propulsion x1, Utility x1 8385 | -7/Factory | First assault squad dispatched 8636 | -7/Factory | Identified exit to Storage 8636 | -7/Factory | Identified exit to Lower Caves 8868 | -7/Factory | Destroyed 7 combat bots 9075 | -7/Factory | Entered Lower Caves 9101 | -7/Lower Caves | Lost 4 parts (2n1u1w) 9111 | -7/Lower Caves | Met a Warlord Commander 9112 | -7/Lower Caves | Learned location of Warlord (-5) 9113 | -7/Lower Caves | Warlord Commander delivered Encrypted Comm Array 9153 | -7/Lower Caves | Found Encrypted Comm Array 9366 | -7/Lower Caves | Build established: Scavenger-Gunner 9469 | -7/Lower Caves | Learned Armory security intel 9517 | -7/Lower Caves | Encountered a Warlord checkpoint 9873 | -7/Lower Caves | Discovered new exit (range 5) 9952 | -7/Lower Caves | Entered another Lower Caves area 10110 | -7/Lower Caves | Lost 4 parts (1p3n) 10219 | -7/Lower Caves | Learned 4 Factory zone layouts 10378 | -7/Lower Caves | Build established: Gunner 10430 | -7/Lower Caves | Identified exit to Data Miner 10554 | -7/Lower Caves | Attracted the attention of an 0b10 outpost 10704 | -7/Lower Caves | Lost 4 parts (1n1u2w) 10903 | -7/Lower Caves | Identified exit to Factory 11867 | -7/Lower Caves | Entered Data Miner 11867 | -7/Data Miner | Accompanied by 2 allies 11869 | -7/Data Miner | Discovered new exit (range 6) 12059 | -7/Data Miner | Met Data Miner 12175 | -7/Data Miner | Build established: Mutant 12269 | -7/Data Miner | Learned location of Section 7 (-2) 12269 | -7/Data Miner | Acquired the access code to Warlord's prototype stash 12429 | -7/Data Miner | Received God Mode back door access code from Data Miner 13309 | -7/Data Miner | Interfaced with the Data Conduit 13345 | -7/Data Miner | Core integrity fell below 50% 13362 | -7/Data Miner | Core integrity fell below 20% 13363 | -7/Data Miner | Destroyed by Enhanced Grunt with Neutron Cannon Last Messages --------------- corrupted. 13335_ Adv. Heat Sink fried. 13335_ Exp. Thermal Shield fried. 13335_ Antimatter Reactor fried. 13335_ Adv. Particle Charger fried. 13335_ Adv. Heat Sink fried. 13341_ Enhanced Grunt Exp. Thermal Shield blasted off. 13343_ System corrupted: Component data lost. 13344_ Imp. Light Armor Plating destroyed. 13344_ Destroyed Adv. Particle Charger. 13346_ Seismic Detector destroyed. 13352_ Rocket Launcher destroyed. 13356_ Imp. Light Cannon destroyed. 13357_ Dropped Mak. Hacking Suite. 13358_ Dropped Tractor Beam. 13359_ Dropped Plasma Cutter. 13359_ Dropped Lrg. Matter Pod. 13359_ Dropped Hcp. Storage Unit. 13360_ Dropped Lgt. Deuterium Engine. Map ----- +----------------------------------------------------+ | | | | | | | | | | | | | | | | | | | | | | | | | | | | | | | | | | | ????????????????????????????????????????? | | ????????????????????????????????????????? | | ????????????????????????????????????????? | | ???????????????????????? ????????????? | | ?????????????????????## ????????#### | | ??????############## ;;;????### # | | ?????"""""""""""""" ; ;??## # | | ????""""""""" "" ; ;### < ## | | ????"""""" @ ]%= # | | ????"""" =%= g ! | | ???"""""""!! / g ! | | ???""""""!!|=%= % | | ???""""""*! | | ????""""" "" """""""""""# | | ????"""""" " ############## | | ????""""""" """"" #????????????? | | ?????"""""""" "########????????????? | | ?????#######"## "#???????????????????? | | ???????????#"### "#???????????????????? | | ???????????#"### "#???????????????????? | | ???????????#"## "#???????????????????? | | ???????????#"## "#???????????????????? | | ?????????????# "#???????????????????? | | ?????????????### "#???????????????????? | | ???????????????# "##??????????????????? | | ??????????????## ""#??????????????????? | | ???????????#?## ""#??????????????????? | | ?????????"##"#"X ""#??????????????????? | | ?????????"""""" "####???????????????? | | ?????????#""""" X"""""???????????????? | | ?????????###"#"X "##"#???????????????? | | ???????????#?## X""""#???????????????? | | ??????????????## "##"#???????????????? | +----------------------------------------------------+ Best States ------------- Heat Dissipation 55 Energy Generation 16 Energy Capacity 290 Matter Stores 300 Matter Capacity 300 Sight Range 16 Terrain Scan Density 10 Armor Coverage 150 Evasion (%) 40 Targeting Accuracy 8 Core Analysis 6 Recoil Reduction 4 Item Schematics ----------------- Datajack | -9/Materials | Scanalyzed Tractor Beam | -9/Materials | Scanalyzed Combat Drone Bay | -7/Data Miner | Free Lgt. Regenerative Plating | -7/Data Miner | Free Biomechanical Wings | -7/Data Miner | Free Exp. Propulsion Shielding | -7/Data Miner | Free Shock Maul | -7/Data Miner | Free Thunder Leg | -7/Data Miner | Free Imp. Thermal Shield | -7/Data Miner | Free Imp. Plasma Cutter | -7/Data Miner | Free Gravmag Array | -7/Data Miner | Free KE Penetrator | -7/Data Miner | Free Hvy. Disruptor Cannon | -7/Data Miner | Free Matter Neutralizer | -7/Data Miner | Free Robot Schematics ------------------ M-22 Extractor | -7/Data Miner | Free O-24 Administrator | -7/Data Miner | Free G-47 Trooper | -7/Data Miner | Free Y-64 Sentinel | -7/Data Miner | Free B-60 Warrior | -7/Data Miner | Free X-62 Marksman | -7/Data Miner | Free Fabricated ------------ Nothing Repaired ---------- Nothing Alien Tech Used ----------------- None Achievements -------------- Unlimited Data Challenges ------------ None Game ------ Seed DecoyCoreFocus Manual? 0 Play Time 01:02:19 Cumulative 184.4 hours Start 2025.08.16 @ 12:56:38 End 2025.08.16 @ 14:08:33 Sessions 1 Manual Loads 0 Difficulty Rogue Special Mode None Game No. 153 Rogue 153 Adventurer 0 Explorer 0 Win Type - Total 5 Types 3/0/1/1/0/0/0/0/0/0 Lore% 77 Gallery% 71 Achievement% 65 Wizard Run 0 Options --------- Layout 1 ASCII 0 Keyboard 0 Movement Numpad Keybinds 0 Fullscreen 1 Font 24/Smallcaps Map View 50x35 Zoom Use 0% Tactical HUD 1 Map Filters NONE Filters NONE Steam 1 RUN: 0075e702-cf26-4593-ac11-55e41ff2f63e